fUSD/lending_fUSD_20250208
["ID","MTS","AMOUNT","RATE_DAILY","PERIOD"]
[352179583,1738978240504,-500.0,0.00011773,2]
[352179585,1738978240517,-59019.72700052,0.00011778,2]
[352179587,1738978240529,-2345.0,0.00011779,2]
[352179590,1738978240541,-500.0,0.00011779,2]
[352179592,1738978240556,-104862.98776083,0.00011779,2]
[352179594,1738978240567,-500.0,0.0001178,2]
[352179597,1738978240579,-500.0,0.0001178,2]
[352179599,1738978240591,-500.0,0.0001178,2]
[352179601,1738978240602,-500.0,0.0001178,2]
[352179603,1738978240614,-500.0,0.0001178,2]
[352179606,1738978240626,-500.0,0.0001178,2]
[352179608,1738978240638,-500.0,0.0001178,2]
[352179610,1738978240650,-500.0,0.0001178,2]
[352179612,1738978240662,-500.0,0.0001178,2]
[352179615,1738978240674,-500.0,0.0001178,2]
[352179617,1738978240686,-500.0,0.0001178,2]
[352179619,1738978240698,-502.0,0.0001178,2]
[352179621,1738978240710,-605.54513267,0.00011794,2]
[352179624,1738978240723,-700.0,0.000118,4]
[352179626,1738978240735,-150.0,0.00011806,2]
[352179628,1738978240748,-150.0,0.00011814,2]
[352179631,1738978240760,-605.54513267,0.00011852,2]
[352179633,1738978240772,-150.0,0.00011865,2]
[352179635,1738978240784,-1000.0,0.000119,4]
[352179638,1738978240796,-605.54513267,0.0001191,2]
[352179640,1738978240808,-500.0,0.00011916,2]
[352179642,1738978240819,-150.0,0.00011923,2]
[352179644,1738978240831,-1860.113,0.00011945,2]
[352179645,1738978240843,-907.0,0.00011945,2]
[352179646,1738978240855,-1264.0,0.00011945,2]
[352179647,1738978240867,-2954.0,0.00011945,2]
[352179648,1738978240879,-783.0,0.00011945,2]
[352179649,1738978240891,-4024.0,0.00011945,2]
[352179650,1738978240903,-539.0,0.00011945,2]
[352179651,1738978240915,-1108.0,0.00011945,2]
[352179652,1738978240927,-151.0,0.00011945,2]
[352179653,1738978240939,-1272.0,0.00011945,2]
[352179654,1738978240951,-3912.0,0.00011945,2]
[352179655,1738978240963,-150.756,0.00011945,2]
[352179656,1738978240975,-2024.0,0.00011945,2]
[352179657,1738978240987,-204.7507,0.00011956,2]
[352179658,1738978240999,-204.7507,0.00011956,2]
[352179659,1738978241011,-150.0,0.00011967,2]
[352179660,1738978241024,-605.54513267,0.00011968,2]
[352179662,1738978241036,-150.0,0.00011982,2]
[352179664,1738978241048,-1502.09319363,0.00012,2]
[352179667,1738978241060,-2000.0,0.00012,2]
[352179669,1738978241072,-1000.0,0.00012,2]
[352179671,1738978241086,-605.54513267,0.00012026,2]
[352179674,1738978241098,-150.0,0.0001204,2]
[352179676,1738978241109,-500.0,0.00012053,2]
[352179678,1738978241123,-439.61,0.00012055,2]
[352179680,1738978241135,-439.61,0.00012055,2]
[352179683,1738978241148,-439.61,0.00012055,2]
[352179685,1738978241159,-774.96,0.00012055,2]
[352179687,1738978241172,-774.96,0.00012055,2]
[352179690,1738978241184,-774.96,0.00012055,2]
[352179692,1738978241195,-774.96,0.00012055,2]
[352179694,1738978241207,-1000.0,0.00012071,2]
[352179696,1738978241219,-155.060187,0.00012082,2]
[352179699,1738978241231,-605.54513267,0.00012084,2]
[352179701,1738978241243,-2336.83921409,0.00012084,2]
[352179703,1738978241255,-150.0,0.00012099,2]
[352179706,1738978241268,-150.0,0.00012121,2]
[352179708,1738978241279,-605.54513267,0.00012142,2]
[352179710,1738978241291,-2336.83921409,0.00012142,2]
[352179712,1738978241303,-150.0,0.00012157,2]
[352179715,1738978241315,-5015.19451928,0.000122,2]
[352179943,1738978243428,-1007.0,0.00011945,2]
[352179945,1738978243438,-823.22648072,0.000122,2]
[352179947,1738978243448,-174.64007793,0.000122,2]
[352179949,1738978243457,-605.54513267,0.000122,2]
[352179951,1738978243466,-1816.80613839,0.000122,2]
[352180195,1738978245953,-520.0330757,0.000122,2]
[352180197,1738978245963,-178.32841617,0.0001221,2]
[352180199,1738978245972,-150.0,0.00012216,2]
[352180201,1738978245981,-500.0,0.0001223,2]
[352180203,1738978245991,-500.0,0.0001223,2]
[352180205,1738978246000,-200.0,0.0001223,2]
[352180207,1738978246009,-166.66,0.00012268,2]
[352180209,1738978246019,-156.20840004,0.00012273,2]
[352180211,1738978246028,-500.0,0.00012273,2]
[352180213,1738978246037,-160.32190018,0.00012273,2]
[352180215,1738978246046,-150.0,0.00012274,2]
[352180217,1738978246055,-150.0,0.00012274,2]
[352180219,1738978246065,-403.66969647,0.000123,2]
[352180229,1738978246156,-1703.33030353,0.000123,2]
[352180231,1738978246165,-6504.48968483,0.000123,2]
[352180854,1738978304492,2404.5227,8.256e-05,2]
[352180855,1738978316369,175.61,0.0002,120]
[352180862,1738978830770,150.0,0.00019512,120]
[352180863,1738978873218,900.0,0.0002,120]
[352180866,1738978950754,150.0,0.00019936,120]
[352180867,1738978974874,538.82,0.0002,120]
[352180868,1738979011316,150.0,0.00019424,120]
[352180869,1738979190747,150.0,0.00019573,120]
[352180873,1738979432097,-1139.8,8.56e-05,2]
[352180874,1738979432106,-300.0,8.658e-05,2]
[352180875,1738979432115,-282.975,8.659e-05,2]
[352180876,1738979432125,-4971.916,8.659e-05,2]
[352180877,1738979432134,-3881.4912,8.699e-05,2]
[352180878,1738979432143,-150.0,8.835e-05,2]
[352180879,1738979432152,-6578.6221,8.836e-05,2]
[352180883,1738979432419,-389.1563,8.836e-05,2]
[352180885,1738979432429,-223.3607,8.836e-05,2]
[352180887,1738979432438,-201.8092,8.836e-05,2]
[352180889,1738979432447,-768.8098,8.836e-05,2]
[352180891,1738979432457,-1084.1714,8.836e-05,2]
[352180893,1738979432466,-2610.7346,8.836e-05,2]
[352180895,1738979432475,-1493.0236,8.836e-05,2]
[352180897,1738979432484,-577031.4558,8.836e-05,2]
[352180899,1738979432493,-793.3025,8.836e-05,2]
[352180901,1738979432502,-3740.6254,8.836e-05,2]
[352180903,1738979432512,-484.1071,8.836e-05,2]
[352180905,1738979432521,-162.03,8.855e-05,2]
[352180907,1738979432530,-2107.7597,8.973e-05,2]
[352180909,1738979432539,-4553.8394,8.973e-05,2]
[352180911,1738979432549,-255.0,9.718e-05,2]
[352180913,1738979432558,-349.0,9.726e-05,2]
[352180915,1738979432567,-219.68040588,0.0001,2]
[352180917,1738979432576,-470.5,0.00010137,2]
[352180919,1738979432585,-250.0,0.00010273,2]
[352180921,1738979432594,-1000.0,0.00010286,2]
[352180923,1738979432603,-2929.75,0.00010304,2]
[352180925,1738979432613,-346.64,0.00010309,2]
[352180927,1738979432622,-23900.0,0.00010338,2]
[352180929,1738979432631,-1581.06,0.00010418,2]
[352180931,1738979432639,-391.8,0.00010544,2]
[352180933,1738979432648,-150.0,0.000108,2]
[352180935,1738979432657,-150.0,0.000108,2]
[352180937,1738979432666,-150.0,0.000108,2]
[352180939,1738979432676,-150.0,0.000108,2]
[352180941,1738979432684,-150.0,0.00010818,2]
[352180943,1738979432693,-1139.8,0.00010824,2]
[352180945,1738979432702,-150.0,0.00010835,2]
[352180947,1738979432711,-150.0,0.00010835,2]
[352180949,1738979432721,-150.0,0.00010853,2]
[352180950,1738979432730,-150.0,0.00010871,2]
[352180952,1738979432739,-150.0,0.00010871,2]
[352180953,1738979432748,-150.0,0.00010888,2]
[352180954,1738979432758,-150.0,0.00010906,2]
[352180955,1738979432766,-150.0,0.00010906,2]
[352180956,1738979432775,-150.0,0.00010924,2]
[352180957,1738979432784,-150.0,0.00010941,2]
[352180958,1738979432793,-150.0,0.00010941,2]
[352180959,1738979432803,-150.0,0.00010959,2]
[352180960,1738979432812,-150.0,0.00010959,2]
[352180961,1738979432821,-150.0,0.00010976,2]
[352180962,1738979432830,-150.0,0.00010976,2]
[352180963,1738979432839,-150.0,0.00010994,2]
[352180964,1738979432848,-150.0,0.00011,2]
[352180965,1738979432857,-150.0,0.00011012,2]
[352180966,1738979432866,-150.0,0.00011012,2]
[352180967,1738979432875,-150.0,0.00011029,2]
[352180968,1738979432884,-150.0,0.00011047,2]
[352180969,1738979432892,-150.0,0.00011047,2]
[352180970,1738979432902,-150.0,0.00011065,2]
[352180971,1738979432911,-150.0,0.00011082,2]
[352180972,1738979432920,-150.0,0.00011082,2]
[352180973,1738979432930,-150.0,0.000111,2]
[352180974,1738979432940,-150.0,0.00011118,2]
[352180975,1738979432951,-150.0,0.00011118,2]
[352180976,1738979432960,-150.0,0.00011135,2]
[352180977,1738979432970,-150.0,0.00011153,2]
[352180978,1738979432980,-150.0,0.00011153,2]
[352180979,1738979432990,-150.0,0.00011171,2]
[352180980,1738979433002,-150.0,0.00011188,2]
[352180981,1738979433011,-150.0,0.00011188,2]
[352180982,1738979433022,-150.0,0.000112,2]
[352180983,1738979433032,-150.0,0.00011206,2]
[352180984,1738979433041,-150.0,0.00011224,2]
[352180985,1738979433051,-150.0,0.00011224,2]
[352180986,1738979433060,-150.0,0.00011241,2]
[352180987,1738979433069,-150.0,0.00011259,2]
[352180988,1738979433078,-150.0,0.00011259,2]
[352180989,1738979433088,-150.0,0.00011276,2]
[352180990,1738979433097,-150.0,0.00011294,2]
[352180991,1738979433106,-150.0,0.00011294,2]
[352180992,1738979433115,-150.0,0.00011312,2]
[352180993,1738979433124,-150.0,0.00011329,2]
[352180994,1738979433133,-150.0,0.00011329,2]
[352180995,1738979433142,-150.0,0.00011347,2]
[352180996,1738979433151,-150.0,0.00011365,2]
[352180997,1738979433161,-150.0,0.00011365,2]
[352180998,1738979433170,-150.0,0.00011382,2]
[352180999,1738979433180,-150.0,0.000114,2]
[352181000,1738979433190,-150.0,0.000114,2]
[352181001,1738979433199,-150.0,0.000114,2]
[352181002,1738979433208,-150.0,0.00011418,2]
[352181003,1738979433217,-150.0,0.00011435,2]
[352181004,1738979433226,-150.0,0.00011435,2]
[352181005,1738979433236,-150.0,0.00011453,2]
[352181006,1738979433245,-150.0,0.00011471,2]
[352181007,1738979433254,-150.0,0.00011471,2]
[352181008,1738979433263,-150.0,0.00011488,2]
[352181009,1738979433272,-1272.0,0.00011504,2]
[352181010,1738979433281,-2024.0,0.00011504,2]
[352181011,1738979433290,-574.218,0.00011504,2]
[352181012,1738979433300,-638.0,0.00011504,2]
[352181013,1738979433309,-150.396,0.00011504,2]
[352181014,1738979433318,-1833.639,0.00011504,2]
[352181015,1738979433327,-907.0,0.00011504,2]
[352181016,1738979433337,-913.451,0.00011504,2]
[352181017,1738979433346,-2954.0,0.00011504,2]
[352181018,1738979433355,-1264.0,0.00011504,2]
[352181019,1738979433364,-539.0,0.00011504,2]
[352181020,1738979433373,-4024.0,0.00011504,2]
[352181021,1738979433383,-242.959,0.00011504,2]
[352181022,1738979433392,-1007.0,0.00011504,2]
[352181023,1738979433401,-3912.0,0.00011504,2]
[352181024,1738979433411,-150.0,0.00011504,2]
[352181025,1738979433420,-150.0,0.00011504,2]
[352181026,1738979433429,-150.0,0.00011506,2]
[352181027,1738979433438,-150.0,0.00011506,2]
[352181028,1738979433447,-534.59993167,0.00011522,2]
[352181029,1738979433457,-150.0,0.00011524,2]
[352181030,1738979433466,-2674.89455741,0.00011529,2]
[352181031,1738979433475,-534.59993167,0.00011532,2]
[352181032,1738979433485,-8308.7657465,0.00011538,2]
[352181033,1738979433494,-200.0,0.00011538,2]
[352181034,1738979433504,-1232.44317582,0.0001154,2]
[352181035,1738979433513,-150.0,0.00011541,2]
[352181036,1738979433523,-150.0,0.00011541,2]
[352181037,1738979433532,-534.59993167,0.00011543,2]
[352181038,1738979433541,-8308.7657465,0.00011544,2]
[352181039,1738979433550,-3075.99719856,0.00011546,2]
[352181040,1738979433559,-2674.89455741,0.0001155,2]
[352181041,1738979433569,-3075.99719856,0.00011556,2]
[352181042,1738979433578,-150.0,0.00011559,2]
[352181043,1738979433588,-2674.89455741,0.00011561,2]
[352181044,1738979433598,-14185.78145552,0.00011562,2]
[352181045,1738979433607,-3075.99719856,0.00011563,2]
[352181046,1738979433617,-2138.39972669,0.00011568,2]
[352181047,1738979433627,-534.59993167,0.0001157,2]
[352181048,1738979433637,-384.24940785,0.0001157,2]
[352181049,1738979433646,-1000.0,0.00011572,2]
[352181050,1738979433656,-2138.39972669,0.00011575,2]
[352181051,1738979433665,-14185.78145552,0.00011576,2]
[352181052,1738979433675,-150.0,0.00011576,2]
[352181053,1738979433684,-150.0,0.00011576,2]
[352181054,1738979433694,-14185.78145552,0.0001158,2]
[352181055,1738979433704,-8308.7657465,0.00011582,2]
[352181056,1738979433714,-1232.44317582,0.00011586,2]
[352181057,1738979433723,-2674.89455741,0.00011587,2]
[352181058,1738979433732,-200.0,0.00011588,2]
[352181059,1738979433742,-14185.78145552,0.00011589,2]
[352181060,1738979433751,-3075.99719856,0.00011589,2]
[352181061,1738979433761,-8308.7657465,0.00011592,2]
[352181062,1738979433772,-1232.44317582,0.00011593,2]
[352181063,1738979433781,-1232.44317582,0.00011593,2]
[352181064,1738979433790,-150.0,0.00011594,2]
[352181065,1738979433800,-2138.39972669,0.00011596,2]
[352181066,1738979433810,-150.0,0.000116,2]
[352181067,1738979433820,-150.0,0.00011612,2]
[352181068,1738979433829,-150.0,0.00011612,2]
[352181069,1738979433838,-150.0,0.00011629,2]
[352181070,1738979433848,-150.0,0.00011647,2]
[352181071,1738979433857,-150.0,0.00011647,2]
[352181072,1738979433866,-150.0,0.00011665,2]
[352181073,1738979433875,-150.0,0.00011682,2]
[352181074,1738979433885,-150.0,0.00011682,2]
[352181075,1738979433894,-150.0,0.000117,2]
[352181076,1738979433903,-150.0,0.00011718,2]
[352181077,1738979433912,-150.0,0.00011718,2]
[352181078,1738979433921,-150.0,0.00011735,2]
[352181079,1738979433931,-150.0,0.00011753,2]
[352181080,1738979433942,-150.0,0.00011753,2]
[352181081,1738979433952,-150.0,0.00011771,2]
[352181082,1738979433962,-162.761622,0.00011779,2]
[352181083,1738979433971,-162.761622,0.00011779,2]
[352181084,1738979433981,-162.761622,0.0001178,2]
[352181085,1738979433991,-162.761622,0.0001178,2]
[352181086,1738979434001,-3600.0,0.0001178,2]
[352181087,1738979434010,-150.0,0.00011788,2]
[352181088,1738979434020,-150.0,0.00011788,2]
[352181089,1738979434030,-150.0,0.000118,2]
[352181090,1738979434040,-150.0,0.00011806,2]
[352181091,1738979434050,-150.0,0.00011824,2]
[352181092,1738979434059,-150.0,0.00011824,2]
[352181093,1738979434069,-150.0,0.00011841,2]
[352181094,1738979434078,-150.0,0.00011859,2]
[352181095,1738979434087,-150.0,0.00011859,2]
[352181096,1738979434097,-391.8,0.00011862,2]
[352181097,1738979434107,-150.0,0.00011876,2]
[352181098,1738979434116,-150.0,0.00011894,2]
[352181099,1738979434126,-150.0,0.00011894,2]
[352181100,1738979434135,-2911.23943491,0.000119,2]
[352181101,1738979434144,-175.54334924,0.000119,2]
[352181102,1738979434153,-150.0,0.00011912,2]
[352181103,1738979434163,-150.0,0.00011929,2]
[352181104,1738979434172,-150.0,0.00011929,2]
[352181105,1738979434181,-150.0,0.00011947,2]
[352181106,1738979434191,-150.0,0.00011965,2]
[352181107,1738979434200,-150.0,0.00011965,2]
[352181108,1738979434210,-166.42498598,0.00011973,2]
[352181109,1738979434219,-500.0,0.00011973,2]
[352181110,1738979434229,-150.0,0.00011982,2]
[352181111,1738979434238,-273.59491171,0.00011998,3]
[352181112,1738979434248,-1898.0,0.00011999,2]
[352181113,1738979434258,-162.761622,0.00012,2]
[352181114,1738979434267,-162.761622,0.00012,2]
[352181115,1738979434276,-621919.95656638,0.00012,2]
[352181116,1738979434295,-400.86620647,0.00012,2]
[352181117,1738979434321,-50505.0,0.00012,2]
[352181118,1738979434339,-17916.91645483,0.00012,2]
[352181265,1738979440118,-1108.0,0.00011504,2]
[352181267,1738979440128,-438.2,0.00011998,3]
[352181295,1738979440393,-947.72946,0.00011998,3]
[352182796,1738979551029,150.0,0.00019157,120]
[352182800,1738979653981,1073.01,8.324e-05,2]
[352182801,1738979670966,150.0,0.00019735,120]
[352182802,1738979731542,150.0,0.00019557,120]
[352182803,1738979790967,150.0,0.00019595,120]
[352182804,1738979888695,1000.0,0.00019178,120]
[352182805,1738979888960,1000.0,0.00019178,120]
[352182806,1738979889421,1000.0,0.00019178,120]
[352182807,1738979889691,1000.0,0.00019178,120]
[352182808,1738979889955,1000.0,0.00019178,120]
[352182809,1738979890218,1000.0,0.00019178,120]
[352182810,1738979890489,1000.0,0.00019178,120]
[352182811,1738979890773,1000.0,0.00019178,120]
[352182812,1738979891052,1000.0,0.00019178,120]
[352182813,1738979891758,1000.0,0.00019178,120]
[352182814,1738979892030,1000.0,0.00019178,120]
[352182815,1738979892294,1000.0,0.00019178,120]
[352182816,1738979893012,1000.0,0.00019178,120]
[352182817,1738979893266,1000.0,0.00019178,120]
[352182818,1738979893547,1000.0,0.00019178,120]
[352182819,1738979893818,1000.0,0.00019178,120]
[352182820,1738979894093,1000.0,0.00019178,120]
[352182821,1738979894356,1000.0,0.00019178,120]
[352182822,1738979894628,545.0,0.00019178,120]
[352182823,1738979959402,1000.0,0.00019178,120]
[352182824,1738979959613,1000.0,0.00019178,120]
[352182825,1738979959875,1000.0,0.00019178,120]
[352182826,1738979960139,1000.0,0.00019178,120]
[352182827,1738979960405,1000.0,0.00019178,120]
[352182828,1738979960682,1000.0,0.00019178,120]
[352182829,1738979960958,1000.0,0.00019178,120]
[352182830,1738979961213,1000.0,0.00019178,120]
[352182831,1738979961479,1000.0,0.00019178,120]
[352182832,1738979961841,1000.0,0.00019178,120]
[352182833,1738979962103,1000.0,0.00019178,120]
[352182834,1738979962378,1000.0,0.00019178,120]
[352182835,1738979962643,1000.0,0.00019178,120]
[352182836,1738979962912,1000.0,0.00019178,120]
[352182837,1738979963178,1000.0,0.00019178,120]
[352182838,1738979963444,1000.0,0.00019178,120]
[352182839,1738979963705,1000.0,0.00019178,120]
[352182840,1738979963966,1000.0,0.00019178,120]
[352182841,1738979964228,1000.0,0.00019178,120]
[352182842,1738980007223,1000.0,0.00019178,120]
[352182843,1738980007499,1000.0,0.00019178,120]
[352182844,1738980007767,1000.0,0.00019178,120]
[352182845,1738980008041,1000.0,0.00019178,120]
[352182846,1738980008299,1000.0,0.00019178,120]
[352182847,1738980008565,1000.0,0.00019178,120]
[352182848,1738980008838,1000.0,0.00019178,120]
[352182849,1738980069123,1000.0,0.00019178,120]
[352182850,1738980069443,1000.0,0.00019178,120]
[352182851,1738980069670,1000.0,0.00019178,120]
[352182852,1738980069910,1000.0,0.00019178,120]
[352182853,1738980070192,1000.0,0.00019178,120]
[352182854,1738980070457,1000.0,0.00019178,120]
[352182855,1738980070723,1000.0,0.00019178,120]
[352182856,1738980070984,1000.0,0.00019178,120]
[352182857,1738980071246,1000.0,0.00019178,120]
[352182858,1738980071948,1000.0,0.00019178,120]
[352182860,1738980128041,500.0,0.0002,120]
[352182861,1738980151281,150.0,0.00019467,120]
[352182862,1738980189883,2000.0,0.0002,120]
[352182863,1738980244128,1720.0,0.0002,120]
[352182864,1738980265395,1001.84,0.0002,120]
[352182866,1738980430854,162.03,8.245e-05,2]
[352182867,1738980518508,2250.020811,0.0002,120]
[352182877,1738980607912,1019.35,8.313e-05,2]
[352182880,1738980632117,-503.75,8.699e-05,2]
[352182881,1738980632130,-1246.6354,8.699e-05,2]
[352182882,1738980632139,-155.024,8.699e-05,2]
[352182883,1738980632148,-342.323,8.836e-05,2]
[352182884,1738980632158,-5000.0,8.973e-05,2]
[352182885,1738980632169,-153.23,0.00010137,2]
[352182886,1738980632178,-152.19,0.00010137,2]
[352182887,1738980632187,-291.62,0.00010244,2]
[352182888,1738980632197,-173.91,0.00010274,2]
[352182889,1738980632206,-150.06,0.00010279,2]
[352182890,1738980632215,-250.0,0.00010287,2]
[352182891,1738980632223,-150.06,0.00010292,2]
[352182892,1738980632232,-150.06,0.00010305,2]
[352182893,1738980632242,-235.08,0.00010305,2]
[352182894,1738980632251,-3253.83,0.00010306,2]
[352182895,1738980632260,-150.06,0.00010318,2]
[352182896,1738980632269,-306.45,0.00010329,2]
[352182897,1738980632278,-150.06,0.00010331,2]
[352182898,1738980632287,-1000.0,0.00010349,2]
[352182899,1738980632296,-683.49,0.00010353,2]
[352182900,1738980632307,-10540.23804202,0.00010368,2]
[352182901,1738980632323,-482.9825,0.00010368,2]
[352182902,1738980632351,-12876.77945798,0.00010368,2]
[352182903,1738980632360,-1019.35,0.00010577,2]
[352182904,1738980632370,-150.41,0.00010578,2]
[352182905,1738980632379,-151.69,0.00010578,2]
[352182906,1738980632388,-1007.0,0.0001063,2]
[352182907,1738980632400,-3912.0,0.0001063,2]
[352182908,1738980632411,-150.0,0.0001063,2]
[352182909,1738980632421,-1108.0,0.00010636,2]
[352182910,1738980632430,-150.0,0.000108,2]
[352182911,1738980632442,-150.0,0.000108,2]
[352182912,1738980632451,-150.0,0.000108,2]
[352182913,1738980632461,-150.0,0.000108,2]
[352182914,1738980632471,-150.0,0.00010852,2]
[352182915,1738980632480,-269.03,0.0001086,2]
[352182916,1738980632489,-269.03,0.00010863,2]
[352182917,1738980632500,-269.03,0.00010866,2]
[352182918,1738980632511,-269.03,0.00010869,2]
[352182919,1738980632520,-269.03,0.00010872,2]
[352182920,1738980632529,-269.03,0.00010875,2]
[352182921,1738980632538,-150.0,0.00010875,2]
[352182923,1738980632547,-269.03,0.00010877,2]
[352182925,1738980632556,-269.03,0.0001088,2]
[352182927,1738980632565,-269.03,0.00010883,2]
[352182929,1738980632574,-269.03,0.00010886,2]
[352182931,1738980632583,-269.03,0.00010889,2]
[352182933,1738980632592,-269.03,0.00010892,2]
[352182935,1738980632601,-269.03,0.00010894,2]
[352182937,1738980632610,-269.03,0.00010897,2]
[352182939,1738980632619,-269.03,0.000109,2]
[352182940,1738980632628,-269.03,0.00010903,2]
[352182942,1738980632637,-150.0,0.00010904,2]
[352182944,1738980632648,-269.03,0.00010906,2]
[352182946,1738980632657,-269.03,0.00010909,2]
[352182948,1738980632666,-269.03,0.00010912,2]
[352182950,1738980632675,-269.03,0.00010914,2]
[352182952,1738980632685,-150.0,0.0001092,2]
[352182954,1738980632694,-150.0,0.00010957,2]
[352182956,1738980632703,-150.0,0.00010959,2]
[352182958,1738980632713,-150.0,0.00011009,2]
[352182960,1738980632722,-150.0,0.0001104,2]
[352182962,1738980632731,-150.0,0.0001104,2]
[352182968,1738980632985,-150.0,0.00011061,2]
[352182969,1738980633000,-163.5,0.00011105,2]
[352182970,1738980633010,-150.0,0.00011113,2]
[352182972,1738980633019,-150.0,0.0001116,2]
[352182974,1738980633028,-150.0,0.00011165,2]
[352182976,1738980633037,-150.0,0.000112,2]
[352182978,1738980633046,-150.0,0.00011217,2]
[352182980,1738980633056,-150.0,0.0001127,2]
[352182982,1738980633065,-150.0,0.0001128,2]
[352182984,1738980633074,-150.0,0.0001128,2]
[352182986,1738980633083,-150.99,0.00011281,2]
[352182988,1738980633091,-999.99,0.00011281,2]
[352182990,1738980633100,-6606.97,0.00011281,2]
[352182992,1738980633110,-9999.99,0.00011281,2]
[352182994,1738980633119,-7775.23,0.00011281,2]
[352182996,1738980633128,-150.99,0.00011281,2]
[352182998,1738980633139,-299.99,0.00011281,2]
[352182999,1738980633148,-2066.37,0.00011281,2]
[352183000,1738980633157,-150.0,0.00011322,2]
[352183001,1738980633166,-303.97,0.00011367,2]
[352183002,1738980633176,-334.07,0.00011367,2]
[352183003,1738980633185,-150.0,0.00011374,2]
[352183004,1738980633194,-150.0,0.000114,2]
[352183005,1738980633204,-400.0,0.000114,4]
[352183006,1738980633214,-150.0,0.00011426,2]
[352183007,1738980633223,-150.0,0.00011478,2]
[352183008,1738980633232,-800.0,0.000115,4]
[352183009,1738980633241,-242.373,0.00011504,2]
[352183010,1738980633251,-1272.0,0.00011504,2]
[352183011,1738980633260,-2024.0,0.00011504,2]
[352183012,1738980633269,-150.0,0.00011504,2]
[352183013,1738980633278,-638.0,0.00011504,2]
[352183014,1738980633287,-568.0,0.00011504,2]
[352183015,1738980633296,-1827.0,0.00011504,2]
[352183016,1738980633305,-2954.0,0.00011504,2]
[352183017,1738980633315,-907.0,0.00011504,2]
[352183018,1738980633323,-1264.0,0.00011504,2]
[352183019,1738980633338,-783.0,0.00011504,2]
[352183020,1738980633347,-3982.04963952,0.00011504,2]
[352183021,1738980633359,-41.95036048,0.00011504,2]
[352183022,1738980633368,-539.0,0.00011504,2]
[352183023,1738980633379,-150.0,0.0001152,2]
[352183024,1738980633389,-150.0,0.0001152,2]
[352183025,1738980633399,-291.62,0.00011524,2]
[352183026,1738980633409,-150.0,0.0001153,2]
[352183027,1738980633418,-166.14,0.00011582,2]
[352183028,1738980633427,-150.0,0.00011583,2]
[352183029,1738980633436,-235.08,0.00011593,2]
[352183030,1738980633447,-150.0,0.000116,2]
[352183031,1738980633456,-1300.0,0.000116,4]
[352183032,1738980633466,-279.0,0.000116,2]
[352183033,1738980633475,-150.0,0.00011635,2]
[352183034,1738980633484,-150.0,0.0001164,2]
[352183035,1738980633495,-1000.0,0.00011643,2]
[352183036,1738980633504,-931.41,0.00011644,2]
[352183037,1738980633513,-300.0,0.00011644,2]
[352183038,1738980633527,-150.0,0.00011687,2]
[352183039,1738980633536,-447.0,0.000117,2]
[352183040,1738980633545,-1700.0,0.000117,4]
[352183041,1738980633555,-150.0,0.00011739,2]
[352183042,1738980633565,-205.08,0.00011743,2]